bitfinex-derivatives/quotes_ETHF0:USTF0_20251021
["timestamp","ask_amount","ask_price","bid_price","bid_amount"]
[1761048231853,1.01429,3886.7,3886.6,0.78125915]
[1761048232554,1.24329,3886.7,3886.6,0.78125915]
[1761048234456,0.68339,3886.7,3886.6,0.78125915]
[1761048234649,10.22836,3887.2,3887.1,0.7781]
[1761048234650,0.2204,3887.2,3887.1,0.7781]
[1761048234956,9.067,3887.4,3887.1,1.80769291]
[1761048235149,0.46293,3887.2,3887.1,1.80769291]
[1761048235350,0.46293,3887.2,3887.1,2.14829291]
[1761048236452,1.01423,3887.2,3887.1,2.14829291]
[1761048236959,0.68333,3887.2,3887.1,2.14829291]
[1761048237160,0.46293,3887.2,3887.1,2.14829291]
[1761048238258,0.3486,3887.7,3887.1,1.37019291]
[1761048238462,1.03917,3887.7,3887.6,0.8034]
[1761048238652,1.26187,3887.7,3887.6,0.8034]
[1761048239063,0.46287,3887.7,3887.6,0.8034]
[1761048239256,0.5763,3888.0,3887.9,0.8034]
[1761048239561,1.03914,3888.0,3887.9,0.8034]
[1761048240049,1.26184,3888.0,3887.9,0.5768]
[1761048240251,1.26184,3888.0,3887.5,1.49909291]
[1761048240252,1.26185,3887.9,3887.8,1.49361694]
[1761048241062,0.46284,3888.0,3887.9,0.8034]
[1761048241368,0.46284,3888.0,3887.9,1.49370409]
[1761048241753,0.2277,3888.2,3888.1,0.8034]
[1761048242053,1.26368213,3888.4,3888.3,0.8034]
[1761048243655,0.80089213,3888.4,3888.3,0.8034]
[1761048243867,0.3486,3888.9,3888.8,0.46274]
[1761048244065,3.2078,3889.2,3889.1,0.8034]
[1761048244254,1.03899,3889.3,3889.2,0.8034]
[1761048244755,0.2277,3889.3,3889.2,0.8034]
[1761048244953,0.23098569,3889.3,3889.2,0.8034]
[1761048245149,0.57958569,3889.3,3889.2,0.8034]
[1761048246959,0.23098569,3889.3,3889.2,0.8034]
[1761048247157,0.00328569,3889.3,3889.2,4.0112]
[1761048247564,9.077,3890.1,3889.2,4.0112]
[1761048247565,3.89808,3890.2,3889.5,0.1289]
[1761048247864,1.26158,3890.2,3890.1,0.8034]
[1761048248567,1.26352255,3890.2,3890.1,0.80632853]
[1761048249664,0.00194255,3890.2,3890.1,0.80632853]
[1761048250069,1.04082255,3890.2,3890.1,0.80632853]
[1761048250772,1.26352255,3890.2,3890.1,0.80632853]
[1761048252172,1.26352255,3890.2,3890.1,0.00292853]
[1761048253070,4.47132255,3890.2,3890.1,0.00292853]
[1761048253867,13.54532255,3890.2,3890.1,0.00292853]
[1761048254064,1.26167,3889.4,3889.3,3.2078]
[1761048254458,0.81852,3889.0,3888.9,3.2078]
[1761048254663,1.38982,3889.0,3888.9,3.2078]
[1761048255172,1.38982,3889.0,3888.9,3.21097702]
[1761048255568,6.38982,3889.0,3888.9,3.21097702]
[1761048255775,6.38982,3889.0,3888.9,0.00317702]
[1761048256869,0.46278,3888.5,3888.4,3.2078]
[1761048257075,1.38988,3888.5,3888.4,3.2078]
[1761048257672,0.9271,3888.5,3888.4,3.9818]
[1761048257972,0.9369,3888.5,3888.4,3.77072306]
[1761048258774,0.9369,3888.5,3888.4,0.56292306]
[1761048258975,0.799,3888.5,3888.4,0.77652306]
[1761048260572,0.5568,3889.1,3889.0,0.1289]
[1761048260776,8.31031,3889.1,3889.0,0.7709]
[1761048261167,7.8476,3889.1,3889.0,0.7709]
[1761048261374,8.31031,3889.1,3889.0,0.7709]
[1761048261774,0.7716,3888.7,3888.6,0.7709]
[1761048262076,1.23436,3888.7,3888.6,0.7709]
[1761048262265,1.23436,3888.7,3888.5,0.1289]
[1761048262266,1.23438,3888.5,3888.4,0.55982306]
[1761048262468,0.7716,3888.5,3888.4,0.77342306]
[1761048262767,1.23438,3888.5,3888.4,0.77342306]
[1761048267078,1.37228,3888.5,3888.4,0.22602306]
[1761048267274,1.23438,3888.5,3888.4,0.77342306]
[1761048268478,1.36678,3888.5,3888.4,0.77342306]
[1761048268780,1.36678,3888.5,3888.4,0.22602306]
[1761048269277,1.36678,3888.5,3888.4,0.56622306]
[1761048271180,0.7716,3888.5,3888.4,0.78972306]
[1761048271386,0.3362,3888.5,3888.4,1.25251306]
[1761048271683,0.69167,3888.6,3888.5,0.9015]
[1761048271880,1.02907,3888.6,3888.5,0.9015]
[1761048272973,0.46277,3888.7,3888.6,1.23737]
[1761048273374,0.69167,3888.7,3888.6,1.23737]
[1761048273579,1.02907,3888.7,3888.6,1.23737]
[1761048275387,1.25317,3888.7,3888.6,0.7746]
[1761048276086,1.25317,3888.7,3888.6,0.2109]
[1761048278083,1.25317,3888.7,3888.6,0.67367]
[1761048278288,1.25317,3888.7,3888.6,1.01387]
[1761048280891,9.2159,3889.0,3888.8,0.3402]
[1761048280892,1.25313,3888.9,3888.8,0.3402]
[1761048281090,1.25313,3888.9,3888.8,0.7746]
[1761048281486,1.25313,3888.9,3888.8,0.5511]
[1761048283089,1.25313,3888.9,3888.8,1.24018662]
[1761048287197,1.25313,3888.9,3888.8,0.5511]
[1761048287893,1.25313,3888.9,3888.8,1.23735]
[1761048288094,0.5663,3888.9,3888.8,1.23735]
[1761048288294,9.075,3889.0,3888.9,0.80294]
[1761048288591,10.10402,3889.0,3888.9,2.15693254]
[1761048288787,10.10402,3889.0,3888.9,1.69419254]
[1761048289391,10.10402,3889.0,3888.9,2.15693254]
[1761048289595,0.2289,3889.0,3888.9,2.15693254]
[1761048289799,0.453,3889.1,3889.0,0.4344]
[1761048290095,0.453,3889.1,3889.0,1.36422]
[1761048290896,0.2289,3889.1,3889.0,1.36422]
[1761048291097,0.4627,3889.2,3889.1,1.23731]
[1761048291298,0.4627,3889.2,3889.1,2.15951633]
[1761048291796,0.6916,3889.2,3889.1,2.15951633]
[1761048292399,1.029,3889.2,3889.1,2.15951633]
[1761048295302,0.46269,3889.3,3889.2,1.23728]
[1761048295600,10.10498,3889.5,3889.4,1.23728]
[1761048295801,1.02898,3889.5,3889.4,1.92852684]
[1761048295997,0.69158,3889.5,3889.4,1.92852684]
[1761048296193,1.02898,3889.5,3889.4,1.92852684]
[1761048296400,0.5663,3889.5,3889.4,1.23728]
[1761048296697,0.2289,3889.5,3889.4,2.15948633]
[1761048297201,0.2289,3889.5,3889.4,1.23728]
[1761048297403,0.69156,3889.5,3889.4,1.23728]
[1761048297598,0.46266,3889.5,3889.4,1.23728]
[1761048297799,1.02546,3889.5,3889.4,1.23728]
[1761048297993,0.5628,3889.5,3889.4,1.23728]
[1761048298195,0.2157,3889.5,3889.4,1.23728]
[1761048298700,0.46265,3889.6,3889.5,1.39025]
[1761048298892,0.46265,3889.6,3889.5,2.08096416]
[1761048299997,10.31739,3890.1,3890.0,0.4522]
[1761048300195,10.31739,3890.1,3890.0,0.798]
[1761048300903,1.24339,3890.1,3890.0,0.798]
[1761048302504,1.24339,3890.1,3890.0,1.39021]
[1761048302695,0.67829,3890.1,3890.0,1.39021]
[1761048303398,1.02539,3890.1,3890.0,1.39021]
[1761048303600,1.02539,3890.1,3890.0,0.9276]
[1761048303905,1.24339,3890.1,3890.0,0.798]
[1761048304990,1.24339,3890.1,3890.0,0.9276]
[1761048305603,1.24339,3890.1,3890.0,0.798]
[1761048306700,0.7808,3890.1,3890.0,1.39021]
[1761048307002,1.24339,3890.1,3890.0,1.39021]
[1761048307201,0.7808,3890.1,3890.0,1.39021]
[1761048307396,1.24339,3890.1,3890.0,1.39021]
[1761048308504,0.7808,3890.1,3890.0,1.39021]
[1761048308702,0.00194255,3890.2,3890.1,1.26059]
[1761048309006,0.00194255,3890.2,3890.1,2.18279633]
[1761048309508,0.00194255,3890.2,3890.1,1.26059]
[1761048310207,0.00194255,3890.2,3890.1,1.47834689]
[1761048310902,0.00194255,3890.2,3889.8,4.57799291]
[1761048310903,0.9073,3890.0,3889.9,0.2216]
[1761048311102,0.9073,3890.0,3889.9,0.5674]
[1761048311504,1.36991,3890.0,3889.9,0.5674]
[1761048312602,0.80972,3889.9,3889.8,3.2078]
[1761048312804,1.24342,3889.9,3889.8,3.2078]
[1761048313399,1.24342,3889.9,3889.8,3.4294]
[1761048313610,1.24342,3889.9,3889.8,3.7752]
[1761048313814,0.5628,3889.9,3889.8,4.0058]
[1761048314000,0.00194255,3890.2,3890.1,1.26059]
[1761048314409,0.00194255,3890.2,3890.1,1.94960424]
[1761048314603,0.00194255,3890.2,3890.1,1.26059]
[1761048316112,0.56474255,3890.2,3890.1,1.26059]
[1761048316510,1.24532255,3890.2,3890.1,1.26059]
[1761048317715,1.24532255,3890.2,3890.1,0.798]
[1761048317916,1.24532255,3890.2,3890.1,1.48720057]
[1761048320115,1.24532255,3890.2,3890.1,0.68920057]
[1761048320313,1.24532255,3890.2,3889.9,0.91868566]
[1761048320314,1.24341,3890.0,3889.9,1.25714729]
[1761048320515,1.24341,3890.0,3889.9,1.48774729]
[1761048320820,1.24341,3890.0,3889.9,1.26062]
[1761048321016,0.7808,3890.0,3889.9,1.26062]
[1761048321319,1.24341,3890.0,3889.9,1.26062]
[1761048321523,1.36991,3890.0,3889.9,0.798]
[1761048321726,1.36991,3890.0,3889.9,1.4878334]
[1761048322223,1.36991,3890.0,3889.9,0.798]
[1761048322722,1.36991,3890.0,3889.9,1.48797833]
[1761048323218,0.80972,3889.9,3889.8,4.81070566]
[1761048323427,1.24342,3889.9,3889.8,5.04130566]
[1761048323921,1.24342,3889.9,3889.8,5.38710566]
[1761048327130,1.24342,3889.9,3889.8,4.46842]
[1761048327828,0.22564255,3890.2,3890.1,0.46259]
[1761048328132,0.00194255,3890.2,3890.1,1.23659]
[1761048328332,0.00194255,3890.2,3890.1,2.61455423]
[1761048331633,0.5388,3891.2,3891.0,0.5521]
[1761048331834,0.5388,3891.2,3891.1,1.46413105]
[1761048332334,0.7521,3891.2,3891.1,1.46413105]
[1761048332541,1.21456,3891.2,3891.1,0.774]
[1761048332729,1.21766211,3891.2,3891.1,0.774]
[1761048337635,1.21766211,3891.2,3891.1,0.5521]
[1761048337941,1.2146,3890.9,3890.8,0.69013105]
[1761048338130,0.1288,3891.0,3890.7,0.69013105]
[1761048338131,1.21461,3890.8,3890.7,0.69013105]
[1761048338333,1.21462,3890.7,3890.6,0.69013105]
[1761048338640,1.21465,3890.5,3890.4,1.46413105]
[1761048340439,1.34345,3890.5,3890.4,1.24223105]
[1761048340641,1.34345,3890.5,3890.4,1.46413105]
[1761048341243,0.7521,3890.5,3890.4,1.92669105]
[1761048341440,1.00132,3890.7,3890.6,0.774]
[1761048342940,0.7521,3890.7,3890.6,0.774]
[1761048344647,1.21462,3890.7,3890.6,0.774]
[1761048345041,1.34345,3890.5,3890.4,0.91233105]
[1761048345241,1.34345,3890.5,3890.4,1.24223105]
[1761048348347,1.21465,3890.5,3890.4,1.46413105]
[1761048348544,0.77763,3890.7,3890.5,0.46255]
[1761048348750,1.00133,3890.7,3890.6,0.774]
[1761048349050,1.21463,3890.7,3890.6,0.774]
[1761048350354,1.34345,3890.5,3890.4,1.24223105]
[1761048352351,1.34345,3890.5,3890.4,0.69013105]
[1761048352551,1.21466,3890.4,3890.3,1.24223105]
[1761048353244,1.21466,3890.4,3890.3,0.774]
[1761048355754,1.21466,3890.4,3890.3,3.9818]
[1761048356552,1.21466,3890.4,3890.3,4.44437]
[1761048357058,0.77763,3890.7,3890.5,0.46254]
[1761048357258,0.77763,3890.7,3890.6,0.4441]
[1761048357259,1.21462,3890.7,3890.6,0.4441]
[1761048357747,1.21462,3890.7,3890.6,0.774]
[1761048358756,1.21462,3890.7,3890.6,1.46422605]
[1761048359156,1.21462,3890.7,3890.6,0.774]
[1761048359456,1.21462,3890.7,3890.6,1.46422605]
[1761048359754,0.7521,3890.7,3890.6,1.23653]
[1761048359952,0.4625,3890.9,3890.8,0.68671]
[1761048360252,0.6746,3890.9,3890.8,0.89691]
[1761048360448,1.251,3890.9,3890.8,0.4344]
[1761048360654,1.251,3890.9,3890.8,0.7638]
[1761048361356,1.251,3890.9,3890.8,1.22631]
[1761048361557,1.251,3890.9,3890.8,0.7638]
[1761048361954,1.251,3890.9,3890.8,0.5536]
[1761048363360,1.251,3890.9,3890.8,0.7638]
[1761048364563,1.251,3890.9,3890.8,1.22631]
[1761048364764,1.251,3890.9,3890.8,1.68397473]
[1761048366868,1.251,3890.9,3890.8,2.14648473]
[1761048370171,0.46248,3891.1,3891.0,1.36257]
[1761048370370,0.46557211,3891.2,3891.1,1.22627]
[1761048370563,0.46557211,3891.2,3891.1,1.91659856]
[1761048372283,0.5601,3891.8,3891.7,0.4344]
[1761048372572,1.02249,3891.8,3891.7,1.45379547]
[1761048372769,1.25089,3891.8,3891.7,1.45379547]
[1761048373074,1.25089,3891.8,3891.7,1.91619547]
[1761048373363,0.1265,3892.0,3891.9,0.89678]
[1761048373364,1.02247,3892.0,3891.9,0.89678]
[1761048373570,0.46236,3892.1,3892.0,1.03306]
[1761048373772,0.46236,3892.1,3892.0,1.36246]
[1761048373970,0.46509763,3892.1,3892.0,1.36246]
[1761048374174,0.67719763,3892.1,3892.0,2.05151066]
[1761048374373,0.67719763,3892.1,3892.0,5.25931066]
[1761048374569,0.67719763,3892.1,3892.0,4.57026]
[1761048375270,0.67719763,3892.1,3892.0,5.25889112]
[1761048375466,0.00273763,3892.1,3892.0,5.25889112]
[1761048376565,0.46509763,3892.1,3892.0,5.25890112]
[1761048376767,1.25359763,3892.1,3892.0,0.4344]
[1761048376973,1.25359763,3892.1,3892.0,0.2242]
[1761048377478,1.25359763,3892.1,3891.7,1.02054651]
[1761048377479,1.25089,3891.8,3891.7,0.76631539]
[1761048377770,1.03879,3891.8,3891.7,0.76631539]
[1761048377977,1.27429,3891.8,3891.7,0.76631539]
[1761048378174,1.27429,3891.8,3891.7,1.22871539]
[1761048382283,0.8119,3891.8,3891.7,1.22871539]
[1761048383175,0.2315,3891.8,3891.7,1.22871539]
[1761048383382,1.02908,3892.0,3891.9,1.20878]
[1761048383581,0.5667,3892.0,3891.9,1.20878]
[1761048383877,0.00273763,3892.1,3892.0,1.34827]
[1761048384072,0.00273763,3892.1,3892.0,4.55607]
[1761048386187,0.00273763,3892.1,3892.0,13.61907]
[1761048387091,0.00273763,3892.1,3892.0,14.30682605]
[1761048387286,0.022,3892.8,3892.7,0.7464]
[1761048387491,0.022,3892.8,3892.7,1.20868]
[1761048387999,0.022,3892.8,3892.7,1.89633489]
[1761048388198,0.022,3892.8,3892.7,1.20868]
[1761048388497,0.02506454,3892.8,3892.7,6.20868]
[1761048388695,0.02506454,3892.8,3892.7,6.89633489]
[1761048388891,0.2301,3893.5,3893.4,1.2376]
[1761048389089,0.5627,3893.5,3893.4,1.2376]
[1761048389794,0.5656177,3893.5,3893.4,1.2376]
[1761048390192,0.2330177,3893.5,3893.4,1.2376]
[1761048390402,0.0029177,3893.5,3893.4,1.2376]
[1761048391491,0.4651077,3893.5,3893.4,0.7754]
[1761048391692,0.6952077,3893.5,3893.4,0.7754]
[1761048391897,0.6952077,3893.5,3893.4,1.2376]
[1761048392101,0.2330177,3893.5,3893.4,1.2376]
[1761048392692,0.0029177,3893.5,3893.4,1.2376]
[1761048395795,0.46211,3894.2,3894.1,0.7754]
[1761048396001,1.24171,3894.2,3894.1,0.7754]
[1761048396200,0.46214,3893.9,3893.8,13.07305]
[1761048396400,1.24174,3893.9,3893.8,13.50635]
[1761048396898,1.24384288,3893.9,3893.8,13.0442]
[1761048397101,1.24384288,3893.9,3893.8,9.8364]
[1761048397602,1.24384288,3893.9,3893.8,9.6242]
[1761048397798,0.46424288,3893.9,3893.8,0.7754]
[1761048398002,1.24384288,3893.9,3893.8,0.7754]
[1761048399705,0.46424288,3893.9,3893.8,0.7754]
[1761048399998,1.02694288,3893.9,3893.8,0.7754]
[1761048400205,1.24384288,3893.9,3893.8,0.7754]
[1761048402494,1.24384288,3893.9,3893.8,1.23755]
[1761048402698,1.24384288,3893.9,3893.8,0.7754]
[1761048402908,0.78170288,3893.9,3893.8,0.7754]
[1761048403298,1.24384288,3893.9,3893.8,0.7754]
[1761048405394,1.24384288,3893.9,3893.8,0.5632]
[1761048406294,1.24384288,3893.9,3893.8,0.7754]
[1761048411112,1.24178,3893.6,3893.5,10.3182524]
[1761048411613,0.7796,3893.1,3893.0,3.771]
[1761048411808,0.7796,3893.1,3893.0,3.9832]
[1761048411809,1.24184,3893.1,3893.0,3.9832]
[1761048412609,1.24184,3893.1,3893.0,3.2078]
[1761048412804,0.46228,3892.7,3892.6,0.6870524]
[1761048413011,1.025,3892.6,3892.5,4.3281524]
[1761048413310,1.025,3892.6,3892.5,3.6411]
[1761048413606,1.025,3892.6,3892.5,3.9832]
[1761048413812,1.2419,3892.6,3892.5,3.9832]
[1761048414515,0.46236,3892.1,3892.0,3.89545403]
[1761048414808,0.7796,3891.8,3891.7,0.00251539]
[1761048415216,0.7796,3891.8,3891.7,0.56571539]
[1761048415411,0.7796,3891.8,3891.7,0.77791539]
[1761048416420,0.7796,3891.8,3891.7,0.22361539]
[1761048417118,0.7796,3891.8,3891.7,0.56571539]
[1761048417316,0.7796,3891.8,3891.7,0.77791539]
[1761048419711,1.24199,3891.8,3891.7,0.77791539]
[1761048420420,1.24199,3891.8,3891.7,0.22361539]
[1761048421106,1.24199,3891.8,3891.7,0.78631539]
[1761048421311,1.02509,3891.8,3891.7,0.78631539]
[1761048421712,1.23459,3891.8,3891.7,0.78631539]
[1761048422015,1.23459,3891.8,3891.7,0.00251539]
[1761048422720,1.21386,3891.2,3891.1,3.2078]
[1761048423022,0.7514,3890.8,3890.7,3.7722]
[1761048423524,0.4625,3890.9,3890.4,0.5644]
[1761048423525,1.33955,3890.5,3890.4,0.5644]
[1761048423718,1.33955,3890.5,3890.3,3.2078]
[1761048423719,0.7514,3890.4,3890.3,3.2078]
[1761048423919,0.7514,3890.4,3890.3,4.00246789]
[1761048424225,0.2115,3890.4,3890.3,4.00246789]
[1761048424621,0.7514,3890.4,3890.3,4.00246789]
[1761048426722,0.7514,3890.4,3890.3,3.21016789]
[1761048426920,0.46547415,3890.5,3890.3,4.00246789]
[1761048427217,0.00292415,3890.5,3890.4,0.7923]
[1761048427821,0.67697415,3890.5,3890.4,0.7923]
[1761048428021,1.00737415,3890.5,3890.4,0.7923]
[1761048428221,1.00737415,3890.5,3890.4,1.25486]
[1761048428621,0.67697415,3890.5,3890.4,1.25486]
[1761048429123,1.00737415,3890.5,3890.4,1.25486]
[1761048429825,0.00292415,3890.5,3890.4,1.25486]
[1761048430716,0.00292415,3890.5,3890.4,6.25486]
[1761048430920,4.4216,3891.7,3891.6,0.7923]
[1761048432020,0.7514,3890.7,3890.6,0.92003]
[1761048432231,1.21392,3890.7,3890.6,0.4575]
[1761048432428,1.21392,3890.7,3890.6,0.7923]
[1761048435228,1.21392,3890.7,3890.6,0.4575]
[1761048435630,1.21392,3890.7,3890.6,0.7923]
[1761048436440,0.88352,3890.7,3890.6,0.7923]
[1761048436827,1.21392,3890.7,3890.6,0.7923]
[1761048441530,0.67402,3890.7,3890.6,0.7923]
[1761048441929,0.3451,3891.3,3891.2,0.4279]
[1761048442131,0.46245,3891.3,3891.2,1.23296]
[1761048443534,0.68885,3891.3,3891.2,1.23296]
[1761048443942,0.68885,3891.3,3891.2,1.92061403]
[1761048444134,0.68885,3891.3,3891.2,1.23296]
[1761048444335,0.46244,3891.5,3891.4,1.23293]
[1761048444532,0.68884,3891.5,3891.4,1.23293]
[1761048444727,0.5715,3891.4,3891.2,0.68801614]
[1761048444934,1.25566,3891.2,3891.1,0.68801614]
[1761048445332,1.25566,3891.2,3891.1,0.90571614]
[1761048445539,1.25566,3891.2,3891.1,1.45851614]
[1761048446144,1.25566,3891.2,3891.1,0.7705]
[1761048446538,0.46245,3891.4,3891.2,0.46246]
[1761048446733,0.46245,3891.4,3891.3,0.7705]
[1761048446934,1.03395,3891.4,3891.3,0.7705]
[1761048447239,1.25565,3891.4,3891.3,0.7705]
[1761048448140,1.25565,3891.4,3891.3,1.45871118]
[1761048448741,1.25565,3891.4,3891.3,0.7705]
[1761048449144,1.25565,3891.4,3891.3,1.45871118]
[1761048450144,1.25565,3891.4,3891.3,0.68821118]
[1761048450743,1.25565,3891.4,3891.3,1.26801118]
[1761048450939,0.80755,3891.4,3891.3,1.48441118]
[1761048451141,0.78302,3891.6,3891.5,1.39183]
[1761048451462,0.78302,3891.6,3891.5,2.08041298]
[1761048451463,0.2269,3891.6,3891.5,2.08041298]
[1761048451653,0.00229756,3891.7,3891.6,1.25862]
[1761048451952,0.00229756,3891.7,3891.6,2.17651543]
[1761048453043,0.00229756,3891.7,3891.6,2.63861095]
[1761048453252,0.00229756,3891.7,3891.6,7.63861095]
[1761048453638,0.00229756,3891.7,3891.6,6.25862]
[1761048454242,0.00229756,3891.7,3891.6,7.63397397]
[1761048457050,1.00975,3893.0,3892.9,0.3473]
[1761048457249,1.2421,3892.6,3892.5,0.7962]
[1761048458042,1.24423996,3892.6,3892.5,1.25851]
[1761048458247,0.92363996,3892.6,3892.5,1.39171]
[1761048458448,1.24423996,3892.6,3892.5,1.39171]
[1761048459653,1.24423996,3892.6,3892.5,0.9294]
[1761048461457,1.24423996,3892.6,3892.5,1.39171]
[1761048463058,0.22903996,3892.6,3892.5,1.39171]
[1761048463351,0.22903996,3892.6,3892.5,2.0788652]
[1761048463352,0.69133996,3892.6,3892.5,2.0788652]
[1761048463559,1.24423996,3892.6,3892.5,1.4833552]
[1761048463761,0.46232,3892.4,3892.3,3.4403]
[1761048463952,1.24212,3892.4,3892.3,3.7876]
[1761048464153,1.24212,3892.4,3892.3,4.004]
[1761048464651,1.24212,3892.4,3892.3,3.4403]
[1761048464958,1.24212,3892.4,3892.3,3.7876]
[1761048465852,1.24212,3892.4,3892.3,3.2078]
[1761048467365,1.24212,3892.4,3892.3,3.7876]
[1761048468457,1.24212,3892.4,3892.3,3.4403]
[1761048468761,1.24212,3892.4,3892.3,0.2325]
[1761048470665,1.24212,3892.4,3892.3,0.5798]
[1761048471264,1.24212,3892.4,3892.3,0.2325]
[1761048472358,1.00984,3892.2,3892.1,4.4747552]
[1761048472564,1.24214,3892.2,3892.1,4.4747552]
[1761048473366,1.24214,3892.2,3892.1,5.1535152]
[1761048474967,1.24214,3892.2,3892.1,4.6911552]
[1761048476269,1.24214,3892.2,3892.1,4.004]
[1761048478768,1.24214,3892.2,3891.8,1.37431041]
[1761048478769,1.23016,3892.1,3891.9,0.91620694]
[1761048479068,1.2302,3891.7,3891.6,3.2078]
[1761048479766,1.2302,3891.7,3891.6,3.89733441]
[1761048479960,1.2302,3891.7,3891.6,0.68953441]
[1761048480268,6.2302,3891.7,3891.6,0.68953441]
[1761048480458,1.23025,3891.3,3891.2,3.89733441]
[1761048480659,1.23025,3891.3,3891.2,3.2078]
[1761048480863,1.23025,3891.3,3891.2,3.7531]
[1761048481063,42.03025,3891.3,3891.2,3.7531]
[1761048481459,42.03025,3891.3,3891.2,0.5453]
[1761048481657,1.23027,3891.1,3891.0,1.44543441]
[1761048481860,0.7678,3891.1,3891.0,1.44543441]
[1761048482259,40.8,3891.3,3891.1,0.3154]
[1761048482460,0.5442,3891.8,3891.7,0.7559]
[1761048482672,0.2142,3891.8,3891.7,0.7559]
[1761048482866,0.46239,3891.9,3891.8,0.7559]
[1761048483071,0.90019,3891.9,3891.8,0.7559]
[1761048483261,0.46242,3891.6,3891.5,0.2299]
[1761048483568,1.23022,3891.6,3891.5,0.2299]
[1761048483769,1.23024,3891.4,3891.3,1.12943775]
[1761048483969,1.23024,3891.4,3891.3,1.44483775]
[1761048485368,1.23024,3891.4,3891.3,0.7559]
[1761048485569,0.1332,3891.5,3891.1,0.68893775]
[1761048485570,1.23026,3891.2,3891.1,0.68893775]
[1761048486273,1.23027,3891.1,3891.0,1.23423775]
[1761048486969,1.23027,3891.1,3891.0,1.44483775]
[1761048487466,1.23027,3891.1,3891.0,1.44410064]
[1761048487964,1.23027,3891.1,3891.0,1.12870064]
[1761048488475,1.23027,3891.1,3891.0,0.91810064]
[1761048489772,1.23027,3891.1,3891.0,0.2299]
[1761048490170,1.23027,3891.1,3891.0,0.7559]
[1761048495372,1.23027,3891.1,3891.0,0.5453]
[1761048495575,1.2303,3890.9,3890.8,4.44130064]
[1761048495875,1.23033,3890.6,3890.5,0.68820064]
[1761048496068,4.43813,3890.6,3890.5,0.66710112]
[1761048496269,1.23036,3890.4,3890.3,0.00236789]
[1761048496464,42.03036,3890.4,3890.3,0.00236789]
[1761048497868,47.03036,3890.4,3890.3,0.00236789]
[1761048498572,56.10636,3890.4,3890.3,0.00236789]
[1761048499380,51.10636,3890.4,3890.3,0.00236789]
[1761048500579,56.10636,3890.4,3890.3,0.00236789]
[1761048501181,1.2524,3889.2,3889.1,3.763]
[1761048501485,1.02321,3890.0,3889.9,0.7751]
[1761048501779,10.32931,3890.0,3889.9,0.7751]
[1761048502172,10.47074176,3890.0,3889.9,0.77706302]
[1761048502371,10.47074176,3890.0,3889.9,0.22456302]
[1761048502580,10.47074176,3890.0,3889.9,0.00196302]
[1761048506083,13.67854176,3890.0,3889.9,0.00196302]
[1761048509885,13.67854176,3890.0,3889.9,0.56436302]
[1761048510276,13.67854176,3890.0,3889.9,0.22946302]
[1761048510685,13.67854176,3890.0,3889.9,0.00196302]
[1761048511880,13.67854176,3890.0,3889.9,0.22946302]
[1761048512082,13.67854176,3890.0,3889.9,0.00196302]
[1761048512686,13.67854176,3890.0,3889.9,0.56436302]
[1761048512878,4.46284176,3890.0,3889.9,0.79416302]
[1761048513187,0.22483176,3890.0,3889.9,1.25678302]
[1761048513390,9.54534176,3890.0,3889.9,0.79416302]
[1761048513786,0.00273176,3890.0,3889.9,1.25678302]
[1761048514780,0.46534176,3890.0,3889.9,1.25678302]
[1761048514984,0.68994176,3890.0,3889.9,1.25678302]
[1761048515391,0.68994176,3890.0,3889.9,0.79416302]
[1761048515687,0.68994176,3890.0,3889.9,1.25678302]
[1761048517487,0.46534176,3890.0,3889.9,1.25678302]
[1761048518578,0.00273176,3890.0,3889.9,1.25678302]
[1761048518784,0.00273176,3890.0,3889.9,9.46458302]
[1761048518993,0.00273176,3890.0,3889.9,10.38078996]
[1761048519185,0.00273176,3890.0,3889.9,9.46458302]
[1761048520091,0.00273176,3890.0,3889.9,10.83889343]
[1761048520982,0.00273176,3890.0,3889.9,9.46458302]
[1761048521489,0.46256,3890.5,3890.4,0.46256]
[1761048521689,0.46256,3890.5,3890.4,4.46256]
[1761048522491,0.4625,3890.9,3890.8,1.25471]
[1761048522690,0.4625,3890.9,3890.8,0.7922]
[1761048523004,0.46484437,3890.9,3890.8,0.7922]
[1761048523193,0.68944437,3890.9,3890.8,1.4647121]
[1761048523493,0.68944437,3890.9,3890.8,1.25471]
[1761048523794,0.00234437,3890.9,3890.8,1.25471]
[1761048524093,0.46484437,3890.9,3890.8,1.25471]
[1761048525093,0.46484437,3890.9,3890.8,1.45969154]
[1761048525589,0.46484437,3890.9,3890.8,1.25471]
[1761048526697,0.46484437,3890.9,3890.8,1.46260268]
[1761048526992,0.46484437,3890.9,3890.8,1.25471]
[1761048528091,0.68944437,3890.9,3890.8,0.7922]
[1761048528293,0.7788,3890.6,3890.4,4.12641917]
[1761048528494,1.24136,3890.4,3890.3,0.2275]
[1761048528688,1.24138,3890.2,3890.1,0.2275]
[1761048529896,1.24138,3890.2,3890.1,0.7922]
[1761048532700,1.24138,3890.2,3890.1,1.25479]
[1761048532993,0.68717,3890.4,3890.3,0.7922]
[1761048533493,1.01897,3890.4,3890.3,0.7922]
[1761048533799,0.5564,3890.4,3890.3,1.25477]
[1761048534202,0.7788,3890.4,3890.3,1.25477]
[1761048534496,1.24136,3890.4,3890.3,0.7922]
[1761048534885,1.24139,3890.1,3890.0,0.7922]
[1761048535600,1.24139,3890.1,3889.9,0.00196302]
[1761048535601,0.46261,3890.0,3889.9,0.00196302]
[1761048535792,1.36891,3890.0,3889.9,0.22946302]
[1761048536096,1.36891,3890.0,3889.9,0.79416302]
[1761048536499,1.36891,3890.0,3889.9,0.22946302]
[1761048539301,1.36891,3890.0,3889.9,0.00196302]
[1761048543197,42.16891,3890.0,3889.9,0.00196302]
[1761048543506,1.2051,3889.2,3889.1,1.14741917]
[1761048543701,1.20511,3889.1,3889.0,0.91861917]
[1761048544003,1.20511,3889.1,3888.9,3.5537]
[1761048544004,1.33912,3889.0,3888.9,3.7825]
[1761048544302,1.33912,3889.0,3888.9,3.78578904]